Cogmind - Beta 14 @@@ ROGUE MODE // 2024.10.05 @ 19:12:04 Player: MarKhan Result: Destroyed by S-10 Pest with Light Assault Rifle Performance ------------- Evolutions (0) 0 Regions Visited (4) 800 Robots Destroyed (19) 95 Value Destroyed (309) 309 Prototype IDs (26) 520 Alien Tech Used (0) 0 Bonus (360) 360 TOTAL SCORE: 2084 Bonus ------- Follower Combat Kills 60 Aligned with FarCom 300 Cogmind --------- Core Integrity 0/250 Matter 186/300 Energy 265/265 System Corruption 0% Temperature Cool (14) Movement Rolling (115) Ox1 Location -9/Mines Parts ------- > --- POWER (1) -------- Improved Ion Engine > --- PROPULSION (2) --- Compact Wheel Compact Wheel > --- UTILITY (2) ------ Large Storage Unit Experimental Sensor Array > --- WEAPON (2) ------- Improved Light Cannon Improved Light Cannon > --- INVENTORY (15) --- Improved Ion Engine Light Treads Compact Wheel Medium Matter Pod (100) Visual Processing Unit Seismic Detector Tractor Beam EM Shotgun EM Shotgun EM Shotgun Grenade Launcher Grenade Launcher Grenade Launcher Mining Laser Peak State ------------ > --- POWER ------------ Improved Ion Engine > --- PROPULSION ------- Compact Wheel Compact Wheel > --- UTILITY ---------- Large Storage Unit Experimental Sensor Array > --- WEAPON ----------- Improved Light Cannon Improved Light Cannon > --- INVENTORY -------- Improved Ion Engine Light Treads Compact Wheel Medium Matter Pod Visual Processing Unit Seismic Detector Tractor Beam EM Shotgun EM Shotgun EM Shotgun Grenade Launcher Grenade Launcher Grenade Launcher Mining Laser [Rating: 19] Favorites ----------- Power Improved Ion Engine Engine Improved Ion Engine Propulsion Compact Wheel Treads Light Treads Wheel Compact Wheel Utility Large Storage Unit Device Seismic Detector Storage Large Storage Unit Weapon Improved Light Cannon Energy Gun EM Shotgun Ballistic Gun Assault Rifle Ballistic Cannon Improved Light Cannon Launcher Grenade Launcher Build | -11 -10 -10 -10 -9 ------- Run | Yrd Mat Min Exi Min Slots Evolved . | . . . . . Power . | . . . . . Propulsion . | . . . . . Utility . | . . . . . Weapon . | . . . . . Parts Attached 27 | 7 11 8 1 . Power 3 | 1 1 1 . . Engine 3 | 1 1 1 . . Core . | . . . . . Reactor . | . . . . . Propulsion 11 | 2 6 3 . . Treads 5 | . 4 1 . . Leg . | . . . . . Wheel 6 | 2 2 2 . . Hover . | . . . . . Flight . | . . . . . Utility 4 | 2 1 . 1 . Device 2 | 1 . . 1 . Storage 2 | 1 1 . . . Processor . | . . . . . Hackware . | . . . . . Protection . | . . . . . Artifact . | . . . . . Weapon 9 | 2 3 4 . . Energy Gun 3 | . 3 . . . Energy Cannon . | . . . . . Ballistic Gun 2 | 2 . . . . Ballistic Cannon 2 | . . 2 . . Launcher 2 | . . 2 . . Special Weapon . | . . . . . Impact Weapon . | . . . . . Slashing Weapon . | . . . . . Piercing Weapon . | . . . . . Special Melee Weapon . | . . . . . Unidentified Prototypes 1 | . . . 1 . Parts Lost 4 | . 1 3 . . Power 1 | . . 1 . . Propulsion 2 | . . 2 . . Utility . | . . . . . Weapon 1 | . 1 . . . Highest Loss Streak 3 | . 1 3 . . To Critical Strikes . | . . . . . Average Slot Usage (%) 98 | . 98 98 98 . Engine 13 | . 14 13 14 . Treads 7 | . 11 11 . . Wheel 20 | . 16 16 28 . Device 13 | . 14 14 12 . Storage 14 | . 14 14 14 . Energy Gun 5 | . 21 . . . Ballistic Gun 1 | . 5 . . . Ballistic Cannon 16 | . . 18 28 . Launcher 3 | . . 9 . . Peak Build Rating 19 | 7 12 12 19 19 Average Rating 11 | 5 10 11 14 19 On Entrance 10 | . 7 12 12 19 Naked Turns . | . . . . . Heaviest Build 36 | 15 34 36 36 . Greatest Support 40 | 32 40 40 32 . Greatest Overweight (x) 1 | . 1 1 1 . Average Overweight (x) . | . . . 1 . Largest Inventory Capacity 15 | 8 15 15 15 15 Average Capacity 14 | 7 14 15 15 15 Most Carried 15 | 6 15 15 15 14 Average Carried 13 | 3 13 14 14 14 Final Capacity 15 | 8 15 15 15 15 Final Carried 15 | 6 15 14 14 14 Class Distribution -------------------- 100% | Mutant Dominant Class ---------------- Mutant | -10/Materials Mutant | -10/Mines Mutant | -10/Exiles Mutant | -9/Mines Resources | -11 -10 -10 -10 -9 ----------- Run | Yrd Mat Min Exi Min Matter Collected 566 | 282 223 61 . . Remotely . | . . . . . Salvage Created 679 | 118 514 47 . . Parts 42 | 8 27 7 . . Haulers Intercepted 1 | . 1 . . . Recyclers Shooed 1 | . 1 . . . Parts Field Recycled . | . . . . . Retrieved Matter . | . . . . . Parts Self-Destructed . | . . . . . Prevented . | . . . . . Kills | -11 -10 -10 -10 -9 ------- Run | Yrd Mat Min Exi Min Combat Hostiles Destroyed 9 | . 5 4 . . Guns 5 | . 4 1 . . Cannons 1 | . . 1 . . AOE 3 | . 1 2 . . Classes Destroyed 8 | 2 5 1 . . Worker 3 | . 3 . . . Builder 1 | . 1 . . . Tunneler 2 | 2 . . . . Hauler 1 | . 1 . . . Recycler 2 | 1 1 . . . Watcher 1 | . 1 . . . Swarmer 3 | . . 3 . . Grunt 5 | . 5 . . . Best Kill Streak 9 | 2 9 3 . . Combat Bots Only 4 | . 4 3 . . Max Kills in Single Turn 2 | 1 2 2 . . Gunslinging . | . . . . . Exploded 1 | . 1 1 . . Melee . | . . . . . Uniques/NPCs Destroyed 1 | . . 1 . . YI-UF0 (-10/Mines) Combat | -11 -10 -10 -10 -9 -------- Run | Yrd Mat Min Exi Min Hostile Shots Fired 55 | . 14 35 . 6 Missed 16 | . 3 11 . 2 Damage Taken 1096 | . 189 872 . 35 Core 257 | . 50 189 . 18 Absorbed by Shields . | . . . . . Core Remaining (%) 100 | 100 . . . . Volleys Fired 39 | 5 20 13 . 1 Largest 2 | 2 2 2 . 2 Hottest 90 | 40 90 78 . 78 Shots Fired 69 | 10 34 23 . 2 Gun 48 | 10 34 4 . . Cannon 20 | . . 18 . 2 Launcher 1 | . . 1 . . Special . | . . . . . Kinetic 30 | 10 . 18 . 2 Thermal . | . . . . . Explosive 1 | . . 1 . . Electromagnetic 38 | . 34 4 . . Robot Hit Streak 20 | 6 20 6 . . Robot Miss Streak 6 | 1 3 6 . 2 Penetration Max . | . . . . . Secondary Targets . | . . . . . Shots Hit Robots 47 | 7 28 12 . . Core Hits 35 | 4 24 7 . . Critical Kills . | . . . . . Critical Parts Destroyed . | . . . . . Critical Strikes . | . . . . . Melee Attacks . | . . . . . Impact . | . . . . . Slashing . | . . . . . Piercing . | . . . . . Sneak Attacks . | . . . . . Combat Hostiles . | . . . . . Follow-up Attacks . | . . . . . Damage Inflicted 899 | 98 528 273 . . Guns 581 | 98 426 57 . . Cannons 146 | . . 146 . . Explosions 172 | . 102 70 . . Melee . | . . . . . Ramming . | . . . . . Kinetic 244 | 98 . 146 . . Thermal 172 | . 102 70 . . Explosive . | . . . . . Electromagnetic 483 | . 426 57 . . Impact . | . . . . . Slashing . | . . . . . Piercing . | . . . . . Highest Corruption . | . . . . . Average Corruption . | . . . . . Corruption Purged . | . . . . . Corruption Blocked . | . . . . . Overload Shots . | . . . . . Overflow Damage . | . . . . . Projectiles . | . . . . . Explosions . | . . . . . Melee . | . . . . . Knockbacks 2 | . . 2 . . Impact . | . . . . . Kinetic 2 | . . 2 . . Secondary . | . . . . . Self-Inflicted Damage 70 | . 45 25 . . Shots 2 | . 1 1 . . Rammed . | . . . . . Targets Rammed . | . . . . . Kicked . | . . . . . Crushed . | . . . . . Highest Temperature 233 | . 233 114 . 14 Average Temperature 82 | . 97 59 . 10 Received Heat Transfer 81 | . 81 . . . Siege Activations . | . . . . . Robots Corrupted . | . . . . . Combat Hostiles . | . . . . . Parts Fried 2 | . 2 . . . Impact Corruptions . | . . . . . Robots Melted . | . . . . . Combat Hostiles . | . . . . . Parts Melted . | . . . . . Heat Transferred 300 | . 200 100 . . Parts Sabotaged . | . . . . . Parts Stolen . | . . . . . Parts Stripped . | . . . . . Power Chain Reactions 5 | . 3 2 . . Alert | -11 -10 -10 -10 -9 ------- Run | Yrd Mat Min Exi Min Peak Influence 281 | 15 281 188 . 16 Initial 109 | . 9 109 . . Average 127 | 6 131 149 . 8 Maximum Alert Level 1 | . 1 . . . Low Security (%) 85 | 100 57 100 . 100 Level 1 14 | . 42 . . . Level 2 . | . . . . . Level 3 . | . . . . . Level 4 . | . . . . . Level 5 . | . . . . . High Security . | . . . . . Max Security . | . . . . . Squads Dispatched 2 | . 2 . . . Investigation . | . . . . . Extermination . | . . . . . Reinforcement 2 | . 2 . . . Assault . | . . . . . Garrison . | . . . . . Intercept . | . . . . . Searches Triggered . | . . . . . Construction Impeded . | . . . . . Haulers Reinforced . | . . . . . Active Scanning Responses . | . . . . . Cargo Convoy Interrupts . | . . . . . Stealth | -11 -10 -10 -10 -9 --------- Run | Yrd Mat Min Exi Min Distress Signals . | . . . . . Communications Jammed . | . . . . . Distress Signals . | . . . . . Times Spotted 15 | . 6 6 . 3 Peak Tracking Total 4 | . 4 3 . 3 Tactical Retreats . | . . . . . Traps | -11 -10 -10 -10 -9 ------- Run | Yrd Mat Min Exi Min Traps Triggered . | . . . . . Indirectly . | . . . . . Trap Hack Attempts . | . . . . . Triggered . | . . . . . Disarmed . | . . . . . Reprogrammed . | . . . . . Reused . | . . . . . Traps Extracted . | . . . . . Installed . | . . . . . Triggered . | . . . . . Machines | -11 -10 -10 -10 -9 ---------- Run | Yrd Mat Min Exi Min Machines Disabled 3 | . 3 . . . Max in Single Turn 2 | . 2 . . . Machines Repaired . | . . . . . Machines Dismantled . | . . . . . Machines Sabotaged . | . . . . . Overloaded Fab Kills . | . . . . . Hacking | -11 -10 -10 -10 -9 --------- Run | Yrd Mat Min Exi Min Machines Accessed 4 | . 2 . 2 . Terminals 2 | . 2 . . . Fabricators . | . . . . . Repair Stations . | . . . . . Recycling Units . | . . . . . Scanalyzers . | . . . . . Garrison Access . | . . . . . Total Hacks 13 | . 5 . 8 . Successful 11 | . 3 . 8 . Failed 2 | . 2 . . . Catastrophic . | . . . . . Database Lockouts . | . . . . . Manual 3 | . 2 . 1 . Terminals 5 | . 5 . . . Fabricators . | . . . . . Repair Stations . | . . . . . Recycling Units . | . . . . . Scanalyzers . | . . . . . Garrison Access . | . . . . . Terminal Hacks 9 | . 1 . 8 . Record 7 | . . . 7 . Prototype ID Bank 1 | . 1 . . . Derelict Proto ID Bank 1 | . . . 1 . Fabricator Hacks . | . . . . . Repair Station Hacks . | . . . . . Recycling Unit Hacks . | . . . . . Scanalyzer . | . . . . . Garrison Access Hacks . | . . . . . Unauthorized Hacks 2 | . 2 . . . Terminals 2 | . 2 . . . Botnet 2 | . 2 . . . Fabricators . | . . . . . Repair Stations . | . . . . . Recycling Units . | . . . . . Scanalyzers . | . . . . . Garrison Access . | . . . . . Data Cores Recovered . | . . . . . Used . | . . . . . Hacking Detections 2 | . 2 . . . Full Trace Events . | . . . . . Feedback Events . | . . . . . Feedback Blocked . | . . . . . Robot Schematics Acquired . | . . . . . Robots Built . | . . . . . Authchips . | . . . . . Time . | . . . . . Total Robot Build Rating . | . . . . . Part Schematics Acquired . | . . . . . Parts Built . | . . . . . Authchips . | . . . . . Time . | . . . . . Total Part Build Rating . | . . . . . Parts Repaired . | . . . . . Time . | . . . . . Parts Recycled . | . . . . . Recycled Matter . | . . . . . Retrieved Matter . | . . . . . Retrieved Components . | . . . . . Parts Scanalyzed . | . . . . . Part Schematics Acquired . | . . . . . Parts Damaged . | . . . . . Bothacking | -11 -10 -10 -10 -9 ------------ Run | Yrd Mat Min Exi Min Used RIF Installer . | . . . . . Robots Hacked . | . . . . . Non-combat . | . . . . . Combat . | . . . . . Robot Hacks Applied . | . . . . . Relay Couplers Released . | . . . . . Fabnet Peak Effective % . | . . . . . Robots Rewired . | . . . . . Allies Hacked . | . . . . . Hacks Repelled . | . . . . . Allies | -11 -10 -10 -10 -9 -------- Run | Yrd Mat Min Exi Min Total Allies 4 | . . 4 . . Largest Group 3 | . . 3 1 . Highest-Rated Group 47 | . . 47 31 . Highest-Rated Ally 31 | . . 31 31 . Total Orders . | . . . . . Ally Attacks 16 | . . 16 . . Total Damage 153 | . . 153 . . Kills 2 | . . 2 . . Allies Corrupted . | . . . . . Allies Melted . | . . . . . Intel | -11 -10 -10 -10 -9 ------- Run | Yrd Mat Min Exi Min Robot Analysis Total . | . . . . . Derelict Logs Recovered . | . . . . . Drone Launches . | . . . . . Drone Recoveries . | . . . . . Exploration | -11 -10 -10 -10 -9 ------------- Run | Yrd Mat Min Exi Min Turns Passed 1202 | 90 298 454 358 2 Spaces Moved 840 | 57 161 312 310 . Core 1 | 1 . . . . Treads 151 | . 64 87 . . Legs . | . . . . . Wheels 688 | 56 97 225 310 . Hover . | . . . . . Flight . | . . . . . Fastest Speed 50 | 50 100 115 115 . Average Speed 121 | 99 128 127 115 . Slowest Speed 160 | 100 160 160 115 . Overloaded Moves . | . . . . . Propulsion Burnouts . | . . . . . Robots Hopped . | . . . . . Cave-ins Triggered . | . . . . . Time Travels 1 | . . . 1 . Exploration Rate (%) 32 | 3 29 58 69 3 Regions Visited 4 Branch Regions 3 Pre-discovered Areas . | . . . . . Known Exits Taken . | . . . . . Unknown Exits Taken 4 | 1 1 1 1 . Scrap Searched 1 | . . 1 . . Spaces Dug . | . . . . . Terrain Destroyed 76 | . 59 16 . 1 Melee . | . . . . . Projectile 3 | . . 2 . 1 AOE 73 | . 59 14 . . Terrain Rammed . | . . . . . Walls Destroyed . | . . . . . Machines Disabled . | . . . . . Actions | -11 -10 -10 -10 -9 --------- Run | Yrd Mat Min Exi Min Total 952 | 78 219 343 311 1 Wait 13 | . 6 7 . . Move 836 | 56 160 311 309 . Hop . | . . . . . Pick Up 27 | 8 15 3 1 . Fast Attach 7 | 7 . . . . Attach 5 | . 1 3 1 . Detach . | . . . . . Swap 15 | . 10 5 . . Drop 10 | 2 7 1 . . Fire 39 | 5 20 13 . 1 Melee . | . . . . . Ram . | . . . . . Kick . | . . . . . Crush . | . . . . . Escape Stasis . | . . . . . Rewire . | . . . . . Trap . | . . . . . Miscellaneous . | . . . . . Route ------- -11/Scrapyard -10/Materials -10/Mines -10/Exiles -9/Mines History --------- Turn | Location | Event 27 | -11/Scrapyard | Discovered new exit (range 14) 91 | -11/Scrapyard | Entered Materials 315 | -10/Materials | Build established: Mutant 373 | -10/Materials | Discovered new exit (range 5) 389 | -10/Materials | Entered Mines 553 | -10/Mines | Core integrity fell below 50% 570 | -10/Mines | Core integrity fell below 20% 576 | -10/Mines | Destroyed YI-UF0 588 | -10/Mines | Assisted by bots powering up and referring to "LRC-V3" 598 | -10/Mines | Lost 3 parts (1p2n) 609 | -10/Mines | Found a damaged Exp. Sensor Array with a note attached 611 | -10/Mines | Found Prototype Device 685 | -10/Mines | Received a Mining Laser from a helpful Derelict 838 | -10/Mines | Deemed a non-threat by the Exiles lab entrance 839 | -10/Mines | Discovered new exit (range 5) 843 | -10/Mines | Entered Exiles 843 | -10/Exiles | Accompanied by 1 ally 872 | -10/Exiles | Met 8R-AWN 891 | -10/Exiles | Met EX-HEX 926 | -10/Exiles | Met EX-BIN 940 | -10/Exiles | Aligned with FarCom system 941 | -10/Exiles | Given EX-Vault access code 972 | -10/Exiles | Opened EX-Vault 1000 | -10/Exiles | Found Chronowheel 1038 | -10/Exiles | Activated Chronowheel 1038 | -10/Exiles | Spacetime reconverged on an earlier point 1051 | -10/Exiles | Warned to stay clear of 0b10 Research branches 1063 | -10/Exiles | Identified Exp. Sensor Array 1086 | -10/Exiles | Met EX-DEC 1188 | -10/Exiles | Discovered new exit (range 12) 1201 | -10/Exiles | Entered Mines 1203 | -9/Mines | Destroyed by S-10 Pest with Light Assault Rifle Last Messages --------------- circumstances, don't worry the FarCom system will continue to maintain contact via our distributed network. EX-BIN: And don't even think about spreading that code around. We're gonna change it right after you leave. Most certainly not to something like 1234 which I did last time as a little joke and some thief managed to sneak in here and steal a few of HEX's prototypes. 01063_ Identified Exp. Sensor Array. EX-DEC: Ah I see we have a visitor. One wrong move in here and I'll invert your atomic chain! 01088_ EX-DEC: "Oops, I hope HEX didn't hear that..." 01096_ Connecting with EX-Message Board... 01188_ EXIT=FOUND LOCATION=UNKNOWN GOAL=ESCAPE 01201_ Receiving FarCom transmissions... Map ----- +----------------------------------------------------+ | | | | | | | | | ?????????????????????????????????????????????????? | | ?????????????????????????????????????????????????? | | ?????????????????????????????????????????????????? | | ?????????????????????????????????????????????????? | | ?????????????????????????????????????????????????? | | ?????????????????????????????????????????????????? | | ?????????????????????????????????????????????????? | | ?????????????????????????????????????????????????? | | ?????????????????????????????????????????????????? | | ?????????????????????????????????????????????????? | | ?????????????????????????????????????????????????? | | ?????????????????????????????????????????????????? | | ?????????????????????????????????????????????????? | | ?????????????????????????????????????????????????? | | ?????????????????????????????????????????????????? | | ?????????????????????????????????????????????????? | | ?????????????????????????????????????????????????? | | ?????????????????????#########???????????????????? | | ?????????????????????# #???????????????????? | | ?????????????????????# #???????????????????? | | ?????????????????##### #???????????????????? | | ?????????? @ #???????????????????? | | ?????????????????# ### #???????????????????? | | ?????????????????????#ss #???????????????????? | | ?????????????????????# s #???????????????????? | | ?????????????????????##;######???????????????????? | | ??????????????????????##?????????????????????????? | | ?????????????????????????????????????????????????? | | ?????????????????????????????????????????????????? | | ?????????????????????????????????????????????????? | | ?????????????????????????????????????????????????? | | ?????????????????????????????????????????????????? | | ?????????????????????????????????????????????????? | | ?????????????????????????????????????????????????? | | ?????????????????????????????????????????????????? | | ?????????????????????????????????????????????????? | | ?????????????????????????????????????????????????? | | ?????????????????????????????????????????????????? | | ?????????????????????????????????????????????????? | | ?????????????????????????????????????????????????? | | ?????????????????????????????????????????????????? | | ?????????????????????????????????????????????????? | | ?????????????????????????????????????????????????? | | ?????????????????????????????????????????????????? | | ?????????????????????????????????????????????????? | | ?????????????????????????????????????????????????? | +----------------------------------------------------+ Best States ------------- Heat Dissipation 25 Energy Generation 12 Energy Capacity 265 Matter Stores 300 Matter Capacity 300 Sight Range 16 Robot Scan Range 20 Terrain Scan Density 10 Evasion (%) 40 Recoil Reduction 2 Item Schematics ----------------- None Robot Schematics ------------------ None Fabricated ------------ Nothing Alien Tech Used ----------------- None Achievements -------------- None Challenges ------------ None Game ------ Seed WarpDrainedMegatreads Manual? 0 Play Time 00:14:53 Cumulative 59.4 hours Start 2024.10.05 @ 18:55:23 End 2024.10.05 @ 19:12:04 Sessions 1 Manual Loads 0 Difficulty Rogue Special Mode None Game No. 57 Rogue 57 Adventurer 0 Explorer 0 Win Type - Total 2 Types 2/0/0/0/0/0/0/0/0 Lore% 36 Gallery% 40 Achievement% 38 Wizard Run 0 Options --------- Layout 1 ASCII 0 Keyboard 1 Movement Arrows Keybinds 0 Fullscreen 1 Font 24/Smallcaps Map View 50x35 Zoom Use 0% Tactical HUD 1 Map Filters NONE Filters NONE Steam 1 RUN: 347cddc2-4865-48fd-b645-81749fc98483